[Event "4th Baskent University Open 2019"]
[Site "Ankara"]
[Date "2019.06.19"]
[Round "5"]
[White "Can, Isik"]
[Black "Kizilkus, Akin"]
[Result "1/2-1/2"]
[ECO "C12"]
[WhiteElo "2379"]
[BlackElo "2131"]
[Annotator "NA"]
[PlyCount "96"]
[EventDate "2019.06.18"]
[EventType "swiss"]
[EventCountry "TUR"]
[SourceTitle "playchess.com"]
[Source "ChessBase"]
[SourceQuality "1"]
[TimeControl "5400+30"]

1. e4 {[%emt 0:00:30]} e6 {[%emt 0:00:30]} 2. d4 {[%emt 0:00:30]} d5 {[%emt 0:00:30]} 3. Nc3 {[%emt 0:00:30]} Nf6 {[%emt 0:00:30]} 4. Bg5 {[%emt 0:00:00]} Bb4 {[%emt 0:00:00]} 5. e5 {[%emt 0:00:00]} h6 {[%emt 0:00:00]} 6. Be3 {[%emt 0:00:30]} Ne4 {[%emt 0:00:00]} 7. Qg4 {[%emt 0:00:00]} g6 {[%emt 0:00:00]} 8. a3 {[%emt 0:00:00]} Bxc3+ {[%emt 0:00:30]} 9. bxc3 {[%emt 0:00:00]} c5 {[%emt 0:00:00]} 10. Bd3 {[%emt 0:00:00]} h5 {[%emt 0:01:00]} 11. Qf3 {[%emt 0:00:30]} Nxc3 {[%emt 0:05:30]} 12. dxc5 {[%emt 0:00:30]} Nc6 {[%emt 0:10:30]} 13. Qf4 {[%emt 0:02:30]} d4 {[%emt 0:07:30]} 14. Bd2 {[%emt 0:00:30]} g5 {[%emt 0:12:30]} 15. Qxg5 {[%emt 0:01:30]} Qxg5 {[%emt 0:03:30]} 16. Bxg5 {[%emt 0:00:30]} Nxe5 {[%emt 0:07:30]} 17. Bf6 {[%emt 0:00:30]} Nxd3+ {[%emt 0:00:30]} 18. cxd3 {[%emt 0:00:00]} Rg8 {[%emt 0:00:30]} 19. Bxd4 {[%emt 0:00:00]} Nd5 {[%emt 0:01:30]} 20. g3 {[%emt 0:08:30]} Bd7 {[%emt 0:04:30]} 21. Ne2 {[%emt 0:01:30]} O-O-O {[%emt 0:09:30]} 22. O-O-O {[%emt 0:03:30]} Bb5 {[%emt 0:06:30]} 23. Be5 {[%emt 0:13:30]} b6 {[%emt 0:03:30]} 24. cxb6 {[%emt 0:13:30]} axb6 {[%emt 0:03:30]} 25. Bb2 {[%emt 0:09:30]} Kb7 {[%emt 0:02:37]} 26. Rd2 {[%emt 0:08:30]} Rd7 {[%emt 0:01:58]} 27. Kb1 {[%emt 0:02:30]} Rgd8 {[%emt 0:02:34]} 28. Rhd1 {[%emt 0:04:30]} Ba6 {[%emt 0:03:34]} 29. h4 {[%emt 0:01:30]} Bb5 {[%emt 0:00:34]} 30. Ka2 {[%emt 0:06:30]} Ba6 {[%emt 0:00:47]} 31. Kb3 {[%emt 0:01:30]} f6 {[%emt 0:01:11]} 32. Nd4 {[%emt 0:09:55]} e5 {[%emt 0:00:39]} 33. Nf5 {[%emt 0:00:49]} Nc7 {[%emt 0:02:17]} 34. d4 {[%emt 0:02:57]} Ne6 {[%emt 0:01:16]} 35. f3 {[%emt 0:01:41]} Bb5 {[%emt 0:02:40]} 36. g4 {[%emt 0:05:55]} Bc6 {[%emt 0:01:49]} 37. Rf1 {[%emt 0:00:43]} exd4 {[%emt 0:01:33]} 38. gxh5 {[%emt 0:00:33]} Rd5 {[%emt 0:00:57]} 39. Ng3 {[%emt 0:00:25]} f5 {[%emt 0:01:54]} 40. Re1 {[%emt 0:01:50]} Nc5+ {[%emt 0:01:04]} 41. Ka2 {[%emt 0:00:02]} f4 {[%emt 0:00:29]} 42. Re7+ {[%emt 0:00:20]} Ka6 {[%emt 0:00:45]} 43. Ne4 {[%emt 0:01:04]} Rxh5 {[%emt 0:00:41]} 44. Rxd4 {[%emt 0:01:08]} Rxd4 {[%emt 0:01:16]} 45. Bxd4 {[%emt 0:00:32]} Nxe4 {[%emt 0:00:16]} 46. fxe4 {[%emt 0:00:00]} Rxh4 {[%emt 0:00:08]} 47. Re6 {[%emt 0:00:29]} Kb7 {[%emt 0:00:30]} 48. Re7+ {[%emt 0:00:30]} Ka6 {[%emt 0:00:00]} 1/2-1/2

[Event "4th Baskent University Open 2019"]
[Site "Ankara"]
[Date "2019.06.19"]
[Round "5"]
[White "Simantsev, Mikhail"]
[Black "Gulbeyaz, Emir"]
[Result "1-0"]
[ECO "E61"]
[WhiteElo "2371"]
[BlackElo "2157"]
[Annotator "NA"]
[PlyCount "81"]
[EventDate "2019.06.18"]
[EventType "swiss"]
[EventCountry "TUR"]
[SourceTitle "playchess.com"]
[Source "ChessBase"]
[SourceQuality "1"]
[TimeControl "5400+30"]

1. d4 {[%emt 0:11:30]} d6 {[%emt 0:01:30]} 2. Nf3 {[%emt 0:02:30]} g6 {[%emt 0:00:30]} 3. c4 {[%emt 0:00:30]} Bg7 {[%emt 0:00:30]} 4. Nc3 {[%emt 0:00:00]} Nf6 {[%emt 0:00:00]} 5. h3 {[%emt 0:01:00]} Bf5 {[%emt 0:09:00]} 6. g4 {[%emt 0:04:30]} Bc8 {[%emt 0:03:30]} 7. e4 {[%emt 0:00:30]} c5 {[%emt 0:01:30]} 8. d5 {[%emt 0:01:30]} h6 {[%emt 0:04:30]} 9. Be3 {[%emt 0:05:30]} b5 {[%emt 0:01:30]} 10. cxb5 {[%emt 0:00:30]} a6 {[%emt 0:01:30]} 11. a4 {[%emt 0:00:00]} O-O {[%emt 0:07:30]} 12. Be2 {[%emt 0:09:00]} Nbd7 {[%emt 0:05:30]} 13. O-O {[%emt 0:08:30]} h5 {[%emt 0:04:30]} 14. g5 {[%emt 0:09:30]} Ne8 {[%emt 0:00:30]} 15. Kg2 {[%emt 0:00:30]} e6 {[%emt 0:00:30]} 16. dxe6 {[%emt 0:02:30]} fxe6 {[%emt 0:00:30]} 17. Nh4 {[%emt 0:00:30]} Kh7 {[%emt 0:07:30]} 18. f4 {[%emt 0:03:30]} Bb7 {[%emt 0:00:30]} 19. Bf3 {[%emt 0:03:30]} axb5 {[%emt 0:03:30]} 20. Nxb5 {[%emt 0:05:30]} Nb6 {[%emt 0:01:30]} 21. Qc2 {[%emt 0:01:30]} Qe7 {[%emt 0:05:30]} 22. a5 {[%emt 0:02:30]} Nc8 {[%emt 0:02:30]} 23. Kh2 {[%emt 0:04:30]} e5 {[%emt 0:01:30]} 24. f5 {[%emt 0:00:30]} gxf5 {[%emt 0:00:30]} 25. exf5 {[%emt 0:02:30]} e4 {[%emt 0:00:30]} 26. Ng6 {[%emt 0:01:55]} Be5+ {[%emt 0:00:30]} 27. Kg1 {[%emt 0:00:45]} exf3 {[%emt 0:01:30]} 28. Nxe7 {[%emt 0:04:46]} Nxe7 {[%emt 0:01:30]} 29. f6+ {[%emt 0:00:01]} Ng6 {[%emt 0:00:30]} 30. Qf5 {[%emt 0:03:08]} Bc6 {[%emt 0:01:30]} 31. Nc3 {[%emt 0:07:39]} Nxf6 {[%emt 0:02:30]} 32. gxf6 {[%emt 0:00:19]} Rxf6 {[%emt 0:00:30]} 33. Qxh5+ {[%emt 0:00:15]} Kg7 {[%emt 0:00:00]} 34. Bg5 {[%emt 0:03:27]} Bd4+ {[%emt 0:00:00]} 35. Rf2 {[%emt 0:00:03]} Rf5 {[%emt 0:05:30]} 36. Bh6+ {[%emt 0:00:09]} Kf6 {[%emt 0:00:30]} 37. Bg7+ {[%emt 0:00:02]} Kxg7 {[%emt 0:00:30]} 38. Qxf5 {[%emt 0:00:30]} Rf8 {[%emt 0:00:00]} 39. Qg5 {[%emt 0:00:07]} Rh8 {[%emt 0:01:00]} 40. Rd1 {[%emt 0:01:27]} Bf6 {[%emt 0:00:30]} 41. Qxf6+ {[%emt 0:01:09]} 1-0

[Event "4th Baskent University Open 2019"]
[Site "Ankara"]
[Date "2019.06.19"]
[Round "5"]
[White "Koksal, Ege"]
[Black "Gulden, Egemen"]
[Result "1-0"]
[ECO "E69"]
[WhiteElo "2363"]
[BlackElo "2120"]
[Annotator "NA"]
[PlyCount "112"]
[EventDate "2019.06.18"]
[EventType "swiss"]
[EventCountry "TUR"]
[SourceTitle "playchess.com"]
[Source "ChessBase"]
[SourceQuality "1"]
[TimeControl "5400+30"]

1. d4 {[%emt 0:05:30]} Nf6 {[%emt 0:00:30]} 2. Nf3 {[%emt 0:01:30]} g6 {[%emt 0:00:30]} 3. c4 {[%emt 0:00:00]} Bg7 {[%emt 0:00:00]} 4. g3 {[%emt 0:00:00]} d6 {[%emt 0:00:00]} 5. Bg2 {[%emt 0:00:00]} O-O {[%emt 0:00:30]} 6. O-O {[%emt 0:00:00]} c6 {[%emt 0:00:30]} 7. Nc3 {[%emt 0:00:30]} Nbd7 {[%emt 0:02:30]} 8. e4 {[%emt 0:00:30]} e5 {[%emt 0:00:30]} 9. h3 {[%emt 0:00:30]} Re8 {[%emt 0:00:30]} 10. Re1 {[%emt 0:00:30]} h6 {[%emt 0:01:30]} 11. Be3 {[%emt 0:03:30]} Qc7 {[%emt 0:00:30]} 12. Qc2 {[%emt 0:00:30]} b6 {[%emt 0:09:30]} 13. Rad1 {[%emt 0:01:30]} Bb7 {[%emt 0:01:30]} 14. b3 {[%emt 0:02:30]} Rac8 {[%emt 0:02:30]} 15. Qd2 {[%emt 0:09:30]} Kh7 {[%emt 0:00:30]} 16. Nh2 {[%emt 0:00:00]} Rcd8 {[%emt 0:09:30]} 17. d5 {[%emt 0:01:00]} c5 {[%emt 0:03:30]} 18. Ng4 {[%emt 0:00:30]} Nxg4 {[%emt 0:07:30]} 19. hxg4 {[%emt 0:00:30]} f6 {[%emt 0:00:00]} 20. Bf3 {[%emt 0:03:30]} Nf8 {[%emt 0:04:00]} 21. Kg2 {[%emt 0:00:30]} g5 {[%emt 0:01:30]} 22. Qe2 {[%emt 0:02:30]} Bc8 {[%emt 0:01:30]} 23. Rb1 {[%emt 0:00:30]} Bd7 {[%emt 0:09:30]} 24. Bd2 {[%emt 0:00:30]} Ng6 {[%emt 0:00:30]} 25. Nd1 {[%emt 0:00:30]} Ne7 {[%emt 0:01:30]} 26. Ne3 {[%emt 0:00:30]} Rb8 {[%emt 0:01:30]} 27. Nf5 {[%emt 0:00:30]} Nxf5 {[%emt 0:08:30]} 28. gxf5 {[%emt 0:00:00]} Red8 {[%emt 0:00:30]} 29. Bh5 {[%emt 0:06:00]} Be8 {[%emt 0:01:30]} 30. Rh1 {[%emt 0:01:30]} Kg8 {[%emt 0:00:30]} 31. f4 {[%emt 0:03:30]} Bxh5 {[%emt 0:05:30]} 32. Qxh5 {[%emt 0:00:30]} Qf7 {[%emt 0:00:30]} 33. Qxf7+ {[%emt 0:09:30]} Kxf7 {[%emt 0:00:30]} 34. fxe5 {[%emt 0:00:00]} fxe5 {[%emt 0:04:30]} 35. Kf3 {[%emt 0:00:00]} Rh8 {[%emt 0:01:30]} 36. Kg4 {[%emt 0:02:30]} Bf6 {[%emt 0:00:30]} 37. a3 {[%emt 0:00:30]} Kg7 {[%emt 0:03:12]} 38. Kh5 {[%emt 0:03:30]} Rhc8 {[%emt 0:05:12]} 39. Rhc1 {[%emt 0:00:30]} Rc7 {[%emt 0:03:12]} 40. Ra1 {[%emt 0:01:30]} Rcc8 {[%emt 0:01:13]} 41. b4 {[%emt 0:00:30]} Rb7 {[%emt 0:05:20]} 42. Rab1 {[%emt 0:00:30]} Rbb8 {[%emt 0:03:22]} 43. Rc2 {[%emt 0:03:30]} Be7 {[%emt 0:01:11]} 44. Be3 {[%emt 0:00:30]} Kf6 {[%emt 0:01:53]} 45. bxc5 {[%emt 0:00:00]} dxc5 {[%emt 0:00:00]} 46. Rcb2 {[%emt 0:01:00]} Rb7 {[%emt 0:01:25]} 47. a4 {[%emt 0:01:30]} Bf8 {[%emt 0:00:16]} 48. a5 {[%emt 0:00:30]} Rcb8 {[%emt 0:00:18]} 49. Rb5 {[%emt 0:02:30]} Bd6 {[%emt 0:00:31]} 50. axb6 {[%emt 0:01:30]} axb6 {[%emt 0:00:02]} 51. Ra1 {[%emt 0:00:00]} Kg7 {[%emt 0:00:44]} 52. Ra6 {[%emt 0:00:00]} Be7 {[%emt 0:00:22]} 53. Rb1 {[%emt 0:00:30]} Bd6 {[%emt 0:00:22]} 54. Rba1 {[%emt 0:00:30]} Be7 {[%emt 0:01:02]} 55. Ra8 {[%emt 0:00:30]} Bd6 {[%emt 0:01:04]} 56. R8a7 {[%emt 0:02:30]} Be7 {[%emt 0:01:19]} 1-0

[Event "4th Baskent University Open 2019"]
[Site "Ankara"]
[Date "2019.06.19"]
[Round "5"]
[White "Guliev, Logman"]
[Black "Grigoriev, Armen"]
[Result "1-0"]
[ECO "B05"]
[WhiteElo "2320"]
[BlackElo "1986"]
[Annotator "NA"]
[PlyCount "50"]
[EventDate "2019.06.18"]
[EventType "swiss"]
[EventCountry "TUR"]
[SourceTitle "playchess.com"]
[Source "ChessBase"]
[SourceQuality "1"]
[TimeControl "5400+30"]

1. e4 {[%emt 0:00:30]} Nf6 {[%emt 0:00:30]} 2. e5 {[%emt 0:00:00]} Nd5 {[%emt 0:00:30]} 3. d4 {[%emt 0:00:00]} d6 {[%emt 0:00:00]} 4. Nf3 {[%emt 0:00:30]} Bg4 {[%emt 0:00:00]} 5. Be2 {[%emt 0:00:00]} e6 {[%emt 0:00:30]} 6. O-O {[%emt 0:00:00]} Be7 {[%emt 0:00:00]} 7. h3 {[%emt 0:00:30]} Bh5 {[%emt 0:00:00]} 8. c4 {[%emt 0:00:00]} Nb6 {[%emt 0:00:00]} 9. Nc3 {[%emt 0:00:00]} O-O {[%emt 0:00:00]} 10. Be3 {[%emt 0:00:30]} Nc6 {[%emt 0:01:30]} 11. exd6 {[%emt 0:00:30]} cxd6 {[%emt 0:00:30]} 12. b3 {[%emt 0:04:30]} d5 {[%emt 0:00:30]} 13. c5 {[%emt 0:01:30]} Nc8 {[%emt 0:00:00]} 14. b4 {[%emt 0:02:30]} a6 {[%emt 0:00:00]} 15. Rb1 {[%emt 0:00:30]} Bf6 {[%emt 0:07:30]} 16. a4 {[%emt 0:00:30]} Bg6 {[%emt 0:01:30]} 17. Rb2 {[%emt 0:01:30]} N8e7 {[%emt 0:01:30]} 18. b5 {[%emt 0:01:30]} axb5 {[%emt 0:01:30]} 19. axb5 {[%emt 0:00:00]} Na5 {[%emt 0:00:30]} 20. Bf4 {[%emt 0:01:00]} Nc4 {[%emt 0:02:30]} 21. Bxc4 {[%emt 0:07:30]} dxc4 {[%emt 0:06:30]} 22. Bd6 {[%emt 0:00:30]} Re8 {[%emt 0:10:30]} 23. Ne5 {[%emt 0:04:30]} Bd3 {[%emt 0:00:30]} 24. Nf3 {[%emt 0:07:30]} Bxd4 {[%emt 0:01:30]} 25. Ne2 {[%emt 0:03:30]} Bf6 {[%emt 0:15:30]} 1-0

[Event "4th Baskent University Open 2019"]
[Site "Ankara"]
[Date "2019.06.19"]
[Round "5"]
[White "Olcum, Ahmet"]
[Black "Rzayev, Askar Aliakbar"]
[Result "0-1"]
[ECO "D02"]
[WhiteElo "2315"]
[BlackElo "2089"]
[Annotator "NA"]
[PlyCount "120"]
[EventDate "2019.06.18"]
[EventType "swiss"]
[EventCountry "TUR"]
[SourceTitle "playchess.com"]
[Source "ChessBase"]
[SourceQuality "1"]
[TimeControl "5400+30"]

1. d4 {[%emt 0:03:30]} Nf6 {[%emt 0:00:30]} 2. Bf4 {[%emt 0:00:30]} d5 {[%emt 0:00:30]} 3. e3 {[%emt 0:00:00]} e6 {[%emt 0:00:00]} 4. Nf3 {[%emt 0:00:00]} c5 {[%emt 0:00:00]} 5. c3 {[%emt 0:00:00]} Bd6 {[%emt 0:00:00]} 6. Bg3 {[%emt 0:01:00]} Qc7 {[%emt 0:00:00]} 7. Nbd2 {[%emt 0:03:30]} Nbd7 {[%emt 0:00:30]} 8. Bd3 {[%emt 0:01:30]} O-O {[%emt 0:00:30]} 9. Nh4 {[%emt 0:03:30]} b6 {[%emt 0:04:30]} 10. Bxd6 {[%emt 0:08:30]} Qxd6 {[%emt 0:00:30]} 11. f4 {[%emt 0:00:00]} cxd4 {[%emt 0:00:30]} 12. cxd4 {[%emt 0:00:00]} Bb7 {[%emt 0:00:30]} 13. O-O {[%emt 0:10:30]} Ne4 {[%emt 0:04:30]} 14. Nhf3 {[%emt 0:08:30]} Ndf6 {[%emt 0:19:30]} 15. Rc1 {[%emt 0:07:30]} Rfc8 {[%emt 0:02:30]} 16. Qe2 {[%emt 0:01:30]} Qb4 {[%emt 0:00:30]} 17. a3 {[%emt 0:00:30]} Qe7 {[%emt 0:04:30]} 18. Ne5 {[%emt 0:19:30]} Rxc1 {[%emt 0:06:30]} 19. Rxc1 {[%emt 0:00:00]} Rc8 {[%emt 0:00:00]} 20. Rxc8+ {[%emt 0:05:00]} Bxc8 {[%emt 0:00:00]} 21. Ndf3 {[%emt 0:02:30]} Qc7 {[%emt 0:00:30]} 22. Qc2 {[%emt 0:03:30]} Qxc2 {[%emt 0:01:30]} 23. Bxc2 {[%emt 0:00:30]} Bb7 {[%emt 0:15:30]} 24. Bd3 {[%emt 0:04:22]} Nd6 {[%emt 0:04:30]} 25. Nd2 {[%emt 0:02:38]} Kf8 {[%emt 0:04:30]} 26. Kf2 {[%emt 0:02:08]} Ke7 {[%emt 0:01:30]} 27. Ke2 {[%emt 0:01:42]} h6 {[%emt 0:01:30]} 28. g4 {[%emt 0:01:20]} Nfe4 {[%emt 0:02:30]} 29. h4 {[%emt 0:02:35]} Nxd2 {[%emt 0:05:30]} 30. Kxd2 {[%emt 0:00:07]} f6 {[%emt 0:00:00]} 31. Nf3 {[%emt 0:06:00]} Bc6 {[%emt 0:00:00]} 32. h5 {[%emt 0:02:58]} Bb5 {[%emt 0:01:30]} 33. Bxb5 {[%emt 0:00:06]} Nxb5 {[%emt 0:00:30]} 34. Nh4 {[%emt 0:00:25]} Nd6 {[%emt 0:00:30]} 35. b3 {[%emt 0:00:56]} f5 {[%emt 0:03:47]} 36. Ng6+ {[%emt 0:00:10]} Kf6 {[%emt 0:00:01]} 37. gxf5 {[%emt 0:00:23]} Nxf5 {[%emt 0:01:50]} 38. Ne5 {[%emt 0:00:07]} Ng3 {[%emt 0:01:01]} 39. b4 {[%emt 0:00:16]} Nxh5 {[%emt 0:01:48]} 40. Nc6 {[%emt 0:00:57]} a6 {[%emt 0:01:40]} 41. Ke2 {[%emt 0:01:09]} Ng3+ {[%emt 0:01:40]} 42. Kf3 {[%emt 0:00:30]} Ne4 {[%emt 0:00:30]} 43. Nb8 {[%emt 0:00:00]} Nd2+ {[%emt 0:00:07]} 44. Ke2 {[%emt 0:00:27]} Nc4 {[%emt 0:00:08]} 45. a4 {[%emt 0:00:15]} a5 {[%emt 0:00:44]} 46. bxa5 {[%emt 0:00:30]} bxa5 {[%emt 0:00:00]} 47. Nc6 {[%emt 0:01:22]} h5 {[%emt 0:01:14]} 48. Kf3 {[%emt 0:00:24]} g6 {[%emt 0:00:22]} 49. e4 {[%emt 0:00:30]} Nd2+ {[%emt 0:00:53]} 50. Ke2 {[%emt 0:01:02]} Nxe4 {[%emt 0:00:10]} 51. Nxa5 {[%emt 0:00:08]} Nc3+ {[%emt 0:00:09]} 52. Kf3 {[%emt 0:00:00]} Nxa4 {[%emt 0:00:37]} 53. Nc6 {[%emt 0:00:00]} Nc3 {[%emt 0:00:00]} 54. Ne5 {[%emt 0:00:00]} Nb5 {[%emt 0:00:22]} 55. Ke3 {[%emt 0:00:35]} Kf5 {[%emt 0:00:12]} 56. Nf3 {[%emt 0:00:00]} Nd6 {[%emt 0:00:31]} 57. Nh4+ {[%emt 0:00:05]} Kf6 {[%emt 0:00:05]} 58. Kd3 {[%emt 0:00:34]} Nf5 {[%emt 0:00:17]} 59. Nf3 {[%emt 0:00:00]} Ne7 {[%emt 0:03:48]} 60. Nh4 {[%emt 0:00:11]} g5 {[%emt 0:00:00]} 0-1

[Event "4th Baskent University Open 2019"]
[Site "Ankara"]
[Date "2019.06.19"]
[Round "5"]
[White "Babayev, Talib"]
[Black "Gulsoy, Mustafa Alpago"]
[Result "0-1"]
[ECO "C66"]
[WhiteElo "2290"]
[BlackElo "2055"]
[Annotator "NA"]
[PlyCount "148"]
[EventDate "2019.06.18"]
[EventType "swiss"]
[EventCountry "TUR"]
[SourceTitle "playchess.com"]
[Source "ChessBase"]
[SourceQuality "1"]
[TimeControl "5400+30"]

1. e4 {[%emt 0:00:30]} e5 {[%emt 0:01:30]} 2. Nf3 {[%emt 0:00:00]} Nc6 {[%emt 0:00:00]} 3. Bb5 {[%emt 0:00:00]} Nf6 {[%emt 0:01:00]} 4. O-O {[%emt 0:00:30]} Be7 {[%emt 0:02:30]} 5. Re1 {[%emt 0:00:30]} d6 {[%emt 0:03:30]} 6. d4 {[%emt 0:00:30]} Bd7 {[%emt 0:04:30]} 7. Nc3 {[%emt 0:00:00]} exd4 {[%emt 0:05:30]} 8. Nxd4 {[%emt 0:00:00]} Nxd4 {[%emt 0:00:30]} 9. Qxd4 {[%emt 0:00:30]} c6 {[%emt 0:00:30]} 10. Bf1 {[%emt 0:00:30]} O-O {[%emt 0:00:30]} 11. Bf4 {[%emt 0:00:30]} Be6 {[%emt 0:04:30]} 12. Rad1 {[%emt 0:02:30]} d5 {[%emt 0:01:30]} 13. exd5 {[%emt 0:01:30]} Nxd5 {[%emt 0:00:30]} 14. Nxd5 {[%emt 0:01:30]} Qxd5 {[%emt 0:01:30]} 15. Qxd5 {[%emt 0:01:30]} cxd5 {[%emt 0:00:00]} 16. Be5 {[%emt 0:00:30]} Rac8 {[%emt 0:03:00]} 17. c3 {[%emt 0:00:30]} a6 {[%emt 0:00:30]} 18. g3 {[%emt 0:03:30]} Rfd8 {[%emt 0:02:30]} 19. Bg2 {[%emt 0:00:30]} Rd7 {[%emt 0:02:30]} 20. Rd2 {[%emt 0:01:30]} b5 {[%emt 0:01:30]} 21. a3 {[%emt 0:09:30]} Rcd8 {[%emt 0:09:30]} 22. Bd4 {[%emt 0:06:30]} h6 {[%emt 0:04:30]} 23. f4 {[%emt 0:02:30]} Rc8 {[%emt 0:05:30]} 24. Bf3 {[%emt 0:00:30]} Bc5 {[%emt 0:01:30]} 25. Red1 {[%emt 0:01:30]} a5 {[%emt 0:04:30]} 26. Bxc5 {[%emt 0:04:30]} Rxc5 {[%emt 0:00:30]} 27. Rd4 {[%emt 0:00:30]} Kf8 {[%emt 0:00:30]} 28. Re1 {[%emt 0:00:30]} Rc4 {[%emt 0:00:30]} 29. Red1 {[%emt 0:00:30]} Rxd4 {[%emt 0:06:30]} 30. Rxd4 {[%emt 0:00:30]} Ke7 {[%emt 0:00:00]} 31. Kf2 {[%emt 0:00:30]} f6 {[%emt 0:00:00]} 32. Ke3 {[%emt 0:00:30]} Kd6 {[%emt 0:00:30]} 33. Be2 {[%emt 0:07:30]} Kc5 {[%emt 0:06:30]} 34. b4+ {[%emt 0:00:30]} axb4 {[%emt 0:02:30]} 35. axb4+ {[%emt 0:00:30]} Kc6 {[%emt 0:00:30]} 36. Rd2 {[%emt 0:00:30]} Re7 {[%emt 0:02:30]} 37. Kd4 {[%emt 0:00:30]} Bf5 {[%emt 0:00:00]} 38. Bf3 {[%emt 0:00:00]} Be4 {[%emt 0:00:00]} 39. Re2 {[%emt 0:12:00]} f5 {[%emt 0:00:30]} 40. Bh5 {[%emt 0:00:30]} Ra7 {[%emt 0:08:04]} 41. Be8+ {[%emt 0:04:30]} Kb6 {[%emt 0:00:17]} 42. Bg6 {[%emt 0:00:00]} Rc7 {[%emt 0:01:57]} 43. Re3 {[%emt 0:03:00]} Rc6 {[%emt 0:02:58]} 44. Bf7 {[%emt 0:01:30]} Rc7 {[%emt 0:01:12]} 45. Be6 {[%emt 0:00:30]} Kc6 {[%emt 0:02:03]} 46. Ke5 {[%emt 0:00:30]} g6 {[%emt 0:04:44]} 47. Re2 {[%emt 0:03:30]} Ra7 {[%emt 0:00:02]} 48. Rd2 {[%emt 0:00:30]} Ra1 {[%emt 0:00:08]} 49. Bf7 {[%emt 0:03:30]} g5 {[%emt 0:01:00]} 50. Be8+ {[%emt 0:01:30]} Kb6 {[%emt 0:02:14]} 51. Bd7 {[%emt 0:00:30]} gxf4 {[%emt 0:01:01]} 52. gxf4 {[%emt 0:00:30]} Rc1 {[%emt 0:01:25]} 53. Bxf5 {[%emt 0:04:30]} Bxf5 {[%emt 0:00:35]} 54. Kxf5 {[%emt 0:00:30]} Rxc3 {[%emt 0:00:00]} 55. Ke5 {[%emt 0:01:30]} Rc4 {[%emt 0:00:17]} 56. Rf2 {[%emt 0:00:30]} Kc6 {[%emt 0:00:42]} 57. f5 {[%emt 0:00:30]} Rxb4 {[%emt 0:01:23]} 58. f6 {[%emt 0:01:30]} Re4+ {[%emt 0:00:06]} 59. Kf5 {[%emt 0:00:00]} Kd7 {[%emt 0:00:04]} 60. h3 {[%emt 0:07:42]} Re3 {[%emt 0:01:05]} 61. Kf4 {[%emt 0:08:48]} d4 {[%emt 0:01:25]} 62. Rd2 {[%emt 0:01:09]} Ke6 {[%emt 0:01:22]} 63. Rxd4 {[%emt 0:01:31]} Rxh3 {[%emt 0:00:30]} 64. Kg4 {[%emt 0:00:00]} Rc3 {[%emt 0:00:00]} 65. Kh5 {[%emt 0:03:24]} Kxf6 {[%emt 0:00:00]} 66. Rb4 {[%emt 0:00:32]} Rc5+ {[%emt 0:00:01]} 67. Kxh6 {[%emt 0:00:00]} Ke6 {[%emt 0:00:30]} 68. Kg6 {[%emt 0:00:00]} Kd6 {[%emt 0:00:00]} 69. Kf6 {[%emt 0:00:31]} Kc6 {[%emt 0:00:03]} 70. Ke6 {[%emt 0:00:00]} Rc1 {[%emt 0:00:38]} 71. Ke5 {[%emt 0:02:15]} Kc5 {[%emt 0:00:01]} 72. Rb2 {[%emt 0:00:07]} b4 {[%emt 0:01:17]} 73. Ke4 {[%emt 0:00:30]} Kc4 {[%emt 0:00:00]} 74. Ke3 {[%emt 0:00:13]} Kc3 {[%emt 0:00:00]} 0-1

[Event "4th Baskent University Open 2019"]
[Site "Ankara"]
[Date "2019.06.19"]
[Round "5"]
[White "Darban, Morteza"]
[Black "Bagaturov, Giorgi"]
[Result "1/2-1/2"]
[ECO "B56"]
[WhiteElo "2264"]
[BlackElo "2422"]
[Annotator "NA"]
[PlyCount "25"]
[EventDate "2019.06.18"]
[EventType "swiss"]
[EventCountry "TUR"]
[SourceTitle "playchess.com"]
[Source "ChessBase"]
[SourceQuality "1"]
[TimeControl "5400+30"]

1. e4 {[%emt 0:00:30]} c5 {[%emt 0:00:30]} 2. Nf3 {[%emt 0:02:30]} d6 {[%emt 0:04:30]} 3. Nc3 {[%emt 0:00:30]} Nc6 {[%emt 0:01:30]} 4. d4 {[%emt 0:00:30]} cxd4 {[%emt 0:00:30]} 5. Nxd4 {[%emt 0:00:30]} Nf6 {[%emt 0:00:30]} 6. f3 {[%emt 0:00:00]} Nxd4 {[%emt 0:01:30]} 7. Qxd4 {[%emt 0:00:00]} g6 {[%emt 0:00:00]} 8. Bb5+ {[%emt 0:10:30]} Bd7 {[%emt 0:00:00]} 9. Bxd7+ {[%emt 0:00:30]} Qxd7 {[%emt 0:00:30]} 10. Bg5 {[%emt 0:00:30]} Bg7 {[%emt 0:00:30]} 11. O-O-O {[%emt 0:00:00]} O-O {[%emt 0:03:30]} 12. Qe3 {[%emt 0:04:00]} Qe6 {[%emt 0:08:30]} 13. Nd5 {[%emt 0:05:30]} 1/2-1/2